[Event "*** Titled Tuesday Blitz"]
[Site "Chess.com"]
[Date "2021.02.16"]
[Round "1"]
[White "TokChess"]
[Black "German_Bazeev"]
[Result "0-1"]
[WhiteElo "2386"]
[BlackElo "2723"]
[TimeControl "180+1"]
[EndTime "10:07:52 PST"]
[Termination "German_Bazeev won by resignation"]

1. Nf3 {[%clk 0:03:00.4]} 1... Nf6 {[%clk 0:02:51]} 2. g3 {[%clk 0:03:00.1]}
2... g6 {[%clk 0:02:50.8]} 3. Bg2 {[%clk 0:03:00.3]} 3... Bg7 {[%clk 0:02:51.7]}
4. O-O {[%clk 0:03:00.9]} 4... O-O {[%clk 0:02:52.6]} 5. d4 {[%clk 0:03:00.1]}
5... d5 {[%clk 0:02:53.2]} 6. Nbd2 {[%clk 0:02:59.7]} 6... a5 {[%clk 0:02:52.8]}
7. c4 {[%clk 0:02:58.2]} 7... dxc4 {[%clk 0:02:53.7]} 8. Nxc4 {[%clk 0:02:58.1]}
8... Be6 {[%clk 0:02:54.5]} 9. Nfe5 {[%clk 0:02:48]} 9... Bd5 {[%clk 0:02:53.9]}
10. f3 {[%clk 0:02:39.7]} 10... Nc6 {[%clk 0:02:50.8]} 11. Nxc6 {[%clk
0:02:34.2]} 11... Bxc6 {[%clk 0:02:48.5]} 12. e4 {[%clk 0:02:32.4]} 12... Bb5
{[%clk 0:02:44.3]} 13. Qd3 {[%clk 0:02:10.4]} 13... Nd7 {[%clk 0:02:07.5]} 14.
Rd1 {[%clk 0:02:02.2]} 14... Ne5 {[%clk 0:01:47.7]} 15. dxe5 {[%clk 0:01:54.7]}
15... Qxd3 {[%clk 0:01:48.6]} 16. Rxd3 {[%clk 0:01:55]} 16... Bxc4 {[%clk
0:01:49.3]} 17. Rc3 {[%clk 0:01:51.9]} 17... Ba6 {[%clk 0:01:48.9]} 18. f4
{[%clk 0:01:47.5]} 18... c6 {[%clk 0:01:38.8]} 19. Be3 {[%clk 0:01:43]} 19...
Rfd8 {[%clk 0:01:39.1]} 20. Bf1 {[%clk 0:01:31]} 20... e6 {[%clk 0:01:26.4]} 21.
Bxa6 {[%clk 0:01:19.1]} 21... Rxa6 {[%clk 0:01:27.3]} 22. Kf2 {[%clk 0:01:18]}
22... Bf8 {[%clk 0:01:19]} 23. Ke2 {[%clk 0:01:16]} 23... a4 {[%clk 0:01:18.2]}
24. Rac1 {[%clk 0:00:57.5]} 24... Rd7 {[%clk 0:01:11.7]} 25. Rd3 {[%clk
0:00:55.1]} 25... Rxd3 {[%clk 0:01:11]} 26. Kxd3 {[%clk 0:00:56]} 26... Ra5
{[%clk 0:01:11.3]} 27. Rc4 {[%clk 0:00:49.8]} 27... Be7 {[%clk 0:01:03.8]} 28.
Rd4 {[%clk 0:00:44.3]} 28... Kf8 {[%clk 0:00:57.4]} 29. Kc3 {[%clk 0:00:38.5]}
29... Ke8 {[%clk 0:00:56.5]} 30. Rc4 {[%clk 0:00:25.6]} 30... c5 {[%clk
0:00:53.9]} 31. Kc2 {[%clk 0:00:21.3]} 31... b5 {[%clk 0:00:52.4]} 32. Rc3
{[%clk 0:00:21.4]} 32... c4 {[%clk 0:00:53]} 33. Bd4 {[%clk 0:00:19.9]} 33...
Ra8 {[%clk 0:00:48.5]} 34. a3 {[%clk 0:00:17.1]} 34... Rd8 {[%clk 0:00:46.6]}
35. Bb6 {[%clk 0:00:15.2]} 35... Rb8 {[%clk 0:00:43.1]} 36. Bd4 {[%clk
0:00:14.8]} 36... Kd7 {[%clk 0:00:43.3]} 37. Rf3 {[%clk 0:00:14.4]} 37... Kc6
{[%clk 0:00:41]} 38. Bc3 {[%clk 0:00:14.6]} 38... Rd8 {[%clk 0:00:32.7]} 39. f5
{[%clk 0:00:14.5]} 39... gxf5 {[%clk 0:00:28.4]} 40. exf5 {[%clk 0:00:15.4]}
40... Kd5 {[%clk 0:00:29]} 41. fxe6 {[%clk 0:00:14.3]} 41... Kxe6 {[%clk
0:00:29.9]} 42. Rf4 {[%clk 0:00:13.3]} 42... h5 {[%clk 0:00:28.4]} 43. Rf3
{[%clk 0:00:12.4]} 43... Rd5 {[%clk 0:00:24.6]} 44. Rf4 {[%clk 0:00:12.4]} 44...
Bg5 {[%clk 0:00:23.1]} 45. Re4 {[%clk 0:00:11.9]} 45... Rd3 {[%clk 0:00:18.8]}
46. h4 {[%clk 0:00:10.9]} 46... Be7 {[%clk 0:00:16.8]} 47. g4 {[%clk 0:00:11.8]}
47... hxg4 {[%clk 0:00:13]} 48. Rxg4 {[%clk 0:00:11.6]} 48... Rh3 {[%clk
0:00:13.7]} 49. Rf4 {[%clk 0:00:09.9]} 49... Rh2+ {[%clk 0:00:13.7]} 50. Kb1
{[%clk 0:00:08.7]} 50... Rxh4 {[%clk 0:00:14.1]} 51. Rxh4 {[%clk 0:00:08.8]}
51... Bxh4 {[%clk 0:00:14.3]} 52. Kc2 {[%clk 0:00:09.2]} 52... Bg3 {[%clk
0:00:14.9]} 53. Kd2 {[%clk 0:00:09.3]} 53... Bxe5 {[%clk 0:00:15.5]} 0-1

[Event "*** Titled Tuesday Blitz"]
[Site "Chess.com"]
[Date "2021.02.16"]
[Round "1"]
[White "KingCyber19"]
[Black "SimplyDevina"]
[Result "1/2-1/2"]
[WhiteElo "2540"]
[BlackElo "2237"]
[TimeControl "180+1"]
[EndTime "10:07:53 PST"]
[Termination "Game drawn by 50-move rule"]

1. d4 {[%clk 0:03:00.9]} 1... Nf6 {[%clk 0:02:40.7]} 2. c4 {[%clk 0:02:59.7]}
2... e6 {[%clk 0:02:16.1]} 3. Nf3 {[%clk 0:02:58]} 3... d5 {[%clk 0:02:12.9]} 4.
g3 {[%clk 0:02:58]} 4... Be7 {[%clk 0:02:12.5]} 5. Bg2 {[%clk 0:02:57.8]} 5...
O-O {[%clk 0:02:13]} 6. O-O {[%clk 0:02:58]} 6... dxc4 {[%clk 0:02:11.8]} 7. Qa4
{[%clk 0:02:58.1]} 7... c5 {[%clk 0:02:06]} 8. Qxc4 {[%clk 0:02:53.9]} 8... cxd4
{[%clk 0:01:54.5]} 9. Nxd4 {[%clk 0:02:53.8]} 9... Nbd7 {[%clk 0:01:45.8]} 10.
Rd1 {[%clk 0:02:51.4]} 10... Nb6 {[%clk 0:01:44.1]} 11. Qb3 {[%clk 0:02:50.9]}
11... Qc7 {[%clk 0:01:35.2]} 12. Nc3 {[%clk 0:02:39.6]} 12... e5 {[%clk
0:01:28]} 13. Ndb5 {[%clk 0:02:38.1]} 13... Qb8 {[%clk 0:01:25.6]} 14. Be3
{[%clk 0:02:37.2]} 14... Be6 {[%clk 0:01:24.1]} 15. Qc2 {[%clk 0:02:29.7]} 15...
Rd8 {[%clk 0:01:10.6]} 16. Rxd8+ {[%clk 0:02:23.2]} 16... Bxd8 {[%clk
0:01:07.2]} 17. Rd1 {[%clk 0:02:22]} 17... Be7 {[%clk 0:01:03.3]} 18. Bxb6
{[%clk 0:02:20.7]} 18... axb6 {[%clk 0:01:02.1]} 19. a3 {[%clk 0:02:20.2]} 19...
Bc5 {[%clk 0:00:44.9]} 20. b4 {[%clk 0:02:18.5]} 20... Be7 {[%clk 0:00:44.7]}
21. Ne4 {[%clk 0:02:12.8]} 21... Nxe4 {[%clk 0:00:41.9]} 22. Qxe4 {[%clk
0:02:12.5]} 22... f6 {[%clk 0:00:33.6]} 23. Qxb7 {[%clk 0:02:10.5]} 23... Qxb7
{[%clk 0:00:33.5]} 24. Bxb7 {[%clk 0:02:11.4]} 24... Rb8 {[%clk 0:00:33.1]} 25.
Bf3 {[%clk 0:02:08.3]} 25... Rc8 {[%clk 0:00:30]} 26. Kg2 {[%clk 0:02:02.4]}
26... Kf8 {[%clk 0:00:27.2]} 27. Na7 {[%clk 0:02:00.2]} 27... Rc3 {[%clk
0:00:24]} 28. Ra1 {[%clk 0:01:59.1]} 28... Bd7 {[%clk 0:00:18.5]} 29. b5 {[%clk
0:01:57.9]} 29... Rxa3 {[%clk 0:00:16.7]} 30. Rxa3 {[%clk 0:01:54.3]} 30... Bxa3
{[%clk 0:00:17.6]} 31. Nc6 {[%clk 0:01:54.5]} 31... Bc5 {[%clk 0:00:15.7]} 32.
Bd5 {[%clk 0:01:53.3]} 32... Bxc6 {[%clk 0:00:14.8]} 33. Bxc6 {[%clk 0:01:52.1]}
33... Ke7 {[%clk 0:00:14.5]} 34. Kf3 {[%clk 0:01:50.6]} 34... Ke6 {[%clk
0:00:10.7]} 35. e3 {[%clk 0:01:48.4]} 35... g6 {[%clk 0:00:10.9]} 36. g4 {[%clk
0:01:46.8]} 36... f5 {[%clk 0:00:10.2]} 37. h4 {[%clk 0:01:46.6]} 37... h6
{[%clk 0:00:06.2]} 38. Be8 {[%clk 0:01:45.7]} 38... Kf6 {[%clk 0:00:04.4]} 39.
Bd7 {[%clk 0:01:45.5]} 39... Bd6 {[%clk 0:00:04.3]} 40. e4 {[%clk 0:01:42.4]}
40... f4 {[%clk 0:00:03.7]} 41. Ke2 {[%clk 0:01:42.5]} 41... g5 {[%clk
0:00:04.2]} 42. h5 {[%clk 0:01:41]} 42... Bc5 {[%clk 0:00:04.1]} 43. f3 {[%clk
0:01:41.3]} 43... Bd4 {[%clk 0:00:03.5]} 44. Kd3 {[%clk 0:01:41.1]} 44... Bc5
{[%clk 0:00:03.8]} 45. Kc4 {[%clk 0:01:41]} 45... Bd4 {[%clk 0:00:04.1]} 46. Kd5
{[%clk 0:01:40.9]} 46... Bc5 {[%clk 0:00:04.4]} 47. Kc6 {[%clk 0:01:41.4]} 47...
Bd4 {[%clk 0:00:04.6]} 48. Bf5 {[%clk 0:01:42]} 48... Bc5 {[%clk 0:00:04.5]} 49.
Kd7 {[%clk 0:01:42.3]} 49... Bd4 {[%clk 0:00:04.3]} 50. Ke8 {[%clk 0:01:42.7]}
50... Kg7 {[%clk 0:00:04.5]} 51. Ke7 {[%clk 0:01:42.8]} 51... Bc5+ {[%clk
0:00:04.7]} 52. Ke6 {[%clk 0:01:42.7]} 52... Bd4 {[%clk 0:00:05.3]} 53. Kd7
{[%clk 0:01:40.5]} 53... Bc5 {[%clk 0:00:05.1]} 54. Be6 {[%clk 0:01:40.1]} 54...
Bd4 {[%clk 0:00:05.4]} 55. Bd5 {[%clk 0:01:40.6]} 55... Bc5 {[%clk 0:00:05]} 56.
Ke6 {[%clk 0:01:41.2]} 56... Bd4 {[%clk 0:00:05.5]} 57. Kf5 {[%clk 0:01:41.8]}
57... Bc3 {[%clk 0:00:04.9]} 58. Bc4 {[%clk 0:01:41]} 58... Bd4 {[%clk
0:00:05.1]} 59. Bf1 {[%clk 0:01:39.7]} 59... Bc3 {[%clk 0:00:05.4]} 60. Bh3
{[%clk 0:01:40.6]} 60... Bd4 {[%clk 0:00:05]} 61. Bf1 {[%clk 0:01:41.5]} 61...
Bc3 {[%clk 0:00:05.3]} 62. Bc4 {[%clk 0:01:42.4]} 62... Bd4 {[%clk 0:00:05.7]}
63. Bb3 {[%clk 0:01:43.3]} 63... Bc3 {[%clk 0:00:06.1]} 64. Ba4 {[%clk
0:01:44.2]} 64... Bd4 {[%clk 0:00:06.6]} 65. Ke6 {[%clk 0:01:45.1]} 65... Bc3
{[%clk 0:00:07]} 66. Kd5 {[%clk 0:01:46]} 66... Bd4 {[%clk 0:00:07.4]} 67. Kc6
{[%clk 0:01:46.9]} 67... Kf6 {[%clk 0:00:07.8]} 68. Bb3 {[%clk 0:01:46]} 68...
Kg7 {[%clk 0:00:08]} 69. Bc4 {[%clk 0:01:45.7]} 69... Kf6 {[%clk 0:00:08.3]} 70.
Bg8 {[%clk 0:01:45.3]} 70... Kg7 {[%clk 0:00:08.5]} 71. Bd5 {[%clk 0:01:45.5]}
71... Kf6 {[%clk 0:00:08.8]} 72. Kd7 {[%clk 0:01:46.1]} 72... Kg7 {[%clk
0:00:08.4]} 73. Ke6 {[%clk 0:01:46.6]} 73... Bc3 {[%clk 0:00:07.7]} 74. Bc4
{[%clk 0:01:46.2]} 74... Bd4 {[%clk 0:00:07.9]} 75. Kd5 {[%clk 0:01:46.3]} 75...
Kf6 {[%clk 0:00:07.6]} 76. Bd3 {[%clk 0:01:45.5]} 76... Kg7 {[%clk 0:00:07]} 77.
Kc6 {[%clk 0:01:45.9]} 77... Kf6 {[%clk 0:00:07.2]} 78. Bc4 {[%clk 0:01:45.5]}
78... Kg7 {[%clk 0:00:07]} 79. Kd7 {[%clk 0:01:44.9]} 79... Kf6 {[%clk
0:00:07.2]} 80. Ke8 {[%clk 0:01:45]} 80... Kg7 {[%clk 0:00:07.5]} 81. Ke7 {[%clk
0:01:45.4]} 81... Bc3 {[%clk 0:00:07.5]} 82. Bd5 {[%clk 0:01:44.9]} 82... Bd4
{[%clk 0:00:07.5]} 83. Bc6 {[%clk 0:01:45.5]} 83... Bc3 {[%clk 0:00:07.6]} 84.
Be8 {[%clk 0:01:46.4]} 84... Bd4 {[%clk 0:00:07.3]} 85. Bf7 {[%clk 0:01:47.3]}
85... Bc3 {[%clk 0:00:07.2]} 86. Bg6 {[%clk 0:01:46.6]} 86... Bd4 {[%clk
0:00:07.3]} 87. Bf5 {[%clk 0:01:46.8]} 87... Bc3 {[%clk 0:00:07.2]} 88. Bd7
{[%clk 0:01:45.7]} 88... Bd4 {[%clk 0:00:07.3]} 89. Bc6 {[%clk 0:01:46.6]} 89...
Bc3 {[%clk 0:00:06.7]} 90. Kd6 {[%clk 0:01:47.5]} 90... Bd4 {[%clk 0:00:06.7]}
91. Kc7 {[%clk 0:01:48.4]} 91... Kf6 {[%clk 0:00:06.7]} 92. Kc8 {[%clk
0:01:46.6]} 92... Kg7 {[%clk 0:00:06.1]} 93. Kd8 {[%clk 0:01:45.6]} 1/2-1/2

[Event "*** Titled Tuesday Blitz"]
[Site "Chess.com"]
[Date "2021.02.16"]
[Round "1"]
[White "kuba2006"]
[Black "Vincent_Vega95"]
[Result "1-0"]
[WhiteElo "2391"]
[BlackElo "2685"]
[TimeControl "180+1"]
[EndTime "10:07:55 PST"]
[Termination "kuba2006 won by resignation"]

1. e4 {[%clk 0:03:00.9]} 1... c5 {[%clk 0:02:58.9]} 2. Nf3 {[%clk 0:02:56.9]}
2... d6 {[%clk 0:02:58.7]} 3. d4 {[%clk 0:02:57.4]} 3... cxd4 {[%clk 0:02:59.6]}
4. Qxd4 {[%clk 0:02:58]} 4... a6 {[%clk 0:02:59.4]} 5. c4 {[%clk 0:02:57.8]}
5... Nc6 {[%clk 0:02:59.7]} 6. Qe3 {[%clk 0:02:58.3]} 6... g6 {[%clk 0:03:00]}
7. h3 {[%clk 0:02:58.6]} 7... Bg7 {[%clk 0:03:00.1]} 8. Be2 {[%clk 0:02:58.8]}
8... Nf6 {[%clk 0:03:00.5]} 9. O-O {[%clk 0:02:59.4]} 9... O-O {[%clk
0:03:01.1]} 10. Nc3 {[%clk 0:03:00]} 10... Nd7 {[%clk 0:02:56.9]} 11. Rb1 {[%clk
0:02:57.7]} 11... Nc5 {[%clk 0:02:56.6]} 12. b4 {[%clk 0:02:44.6]} 12... Bxc3
{[%clk 0:02:10.5]} 13. bxc5 {[%clk 0:02:42.5]} 13... Bg7 {[%clk 0:02:10.6]} 14.
Rd1 {[%clk 0:02:38]} 14... Qc7 {[%clk 0:02:10.3]} 15. cxd6 {[%clk 0:02:33.6]}
15... exd6 {[%clk 0:02:10.3]} 16. Ba3 {[%clk 0:02:31.8]} 16... Rd8 {[%clk
0:02:10.2]} 17. Qb6 {[%clk 0:02:23.3]} 17... Qxb6 {[%clk 0:01:58.8]} 18. Rxb6
{[%clk 0:02:24.2]} 18... Bf8 {[%clk 0:01:59]} 19. Nd4 {[%clk 0:01:03.7]} 19...
Ne5 {[%clk 0:01:50.8]} 20. f4 {[%clk 0:01:01.2]} 20... Nd7 {[%clk 0:01:49.3]}
21. Rb2 {[%clk 0:00:42.1]} 21... Nc5 {[%clk 0:01:48.9]} 22. Bf3 {[%clk
0:00:38.6]} 22... Re8 {[%clk 0:01:48.8]} 23. Bxc5 {[%clk 0:00:26]} 23... dxc5
{[%clk 0:01:48]} 24. Ne2 {[%clk 0:00:26.1]} 24... Be6 {[%clk 0:01:28.7]} 25.
Rxb7 {[%clk 0:00:16.2]} 25... Bxc4 {[%clk 0:01:27.9]} 26. e5 {[%clk 0:00:15.2]}
26... Rad8 {[%clk 0:01:15.7]} 27. Rdd7 {[%clk 0:00:14.7]} 27... Rxd7 {[%clk
0:01:14]} 28. Rxd7 {[%clk 0:00:15.6]} 28... Re7 {[%clk 0:01:06.4]} 29. Rd8
{[%clk 0:00:15.2]} 29... Be6 {[%clk 0:00:51.2]} 30. Nc3 {[%clk 0:00:14.7]} 30...
Rd7 {[%clk 0:00:51.4]} 31. Ra8 {[%clk 0:00:14.1]} 31... Kg7 {[%clk 0:00:38.1]}
32. Rxa6 {[%clk 0:00:13]} 32... c4 {[%clk 0:00:38.2]} 33. Rc6 {[%clk 0:00:12]}
33... Bb4 {[%clk 0:00:29]} 34. Ne4 {[%clk 0:00:11.8]} 34... Ra7 {[%clk
0:00:24.7]} 35. Nf6 {[%clk 0:00:09.7]} 35... Rxa2 {[%clk 0:00:17.5]} 36. Bd5
{[%clk 0:00:09.1]} 36... Bxd5 {[%clk 0:00:14.7]} 37. Nxd5 {[%clk 0:00:10]} 37...
Bf8 {[%clk 0:00:08.8]} 38. Rxc4 {[%clk 0:00:10]} 38... Rd2 {[%clk 0:00:09.5]}
39. Nf6 {[%clk 0:00:09.8]} 39... Be7 {[%clk 0:00:09.9]} 40. Ne4 {[%clk
0:00:09.3]} 40... Re2 {[%clk 0:00:09.5]} 41. Kf1 {[%clk 0:00:08.7]} 41... Ra2
{[%clk 0:00:09.5]} 42. Kg1 {[%clk 0:00:08.6]} 42... h6 {[%clk 0:00:09.4]} 43.
Kh2 {[%clk 0:00:08.6]} 43... g5 {[%clk 0:00:09.2]} 44. f5 {[%clk 0:00:08.6]}
44... f6 {[%clk 0:00:09.2]} 45. e6 {[%clk 0:00:07.2]} 45... Ra7 {[%clk
0:00:08.5]} 46. g4 {[%clk 0:00:06.5]} 46... Kf8 {[%clk 0:00:08.3]} 47. Kg3
{[%clk 0:00:06.7]} 47... Ke8 {[%clk 0:00:08.7]} 48. Kf3 {[%clk 0:00:06.9]} 48...
Bd8 {[%clk 0:00:09.1]} 49. Rc3 {[%clk 0:00:06.8]} 49... Ke7 {[%clk 0:00:09.6]}
50. Rd3 {[%clk 0:00:06.5]} 50... Rb7 {[%clk 0:00:09.4]} 51. Nd6 {[%clk
0:00:06.5]} 51... Ra7 {[%clk 0:00:09.6]} 52. Nc8+ {[%clk 0:00:06.7]} 1-0

[Event "*** Titled Tuesday Blitz"]
[Site "Chess.com"]
[Date "2021.02.16"]
[Round "1"]
[White "Kaiyrbekov"]
[Black "MFBerna"]
[Result "0-1"]
[WhiteElo "2115"]
[BlackElo "2504"]
[TimeControl "180+1"]
[EndTime "10:07:58 PST"]
[Termination "MFBerna won by checkmate"]

1. c4 {[%clk 0:02:59.7]} 1... e5 {[%clk 0:02:13.2]} 2. Nc3 {[%clk 0:03:00]} 2...
Nf6 {[%clk 0:02:11.2]} 3. Nf3 {[%clk 0:03:00.4]} 3... Nc6 {[%clk 0:02:11.1]} 4.
g3 {[%clk 0:03:00.5]} 4... d5 {[%clk 0:02:10.2]} 5. cxd5 {[%clk 0:03:00.7]} 5...
Nxd5 {[%clk 0:02:11.1]} 6. Bg2 {[%clk 0:03:01.1]} 6... Be7 {[%clk 0:02:11.6]} 7.
O-O {[%clk 0:03:01.6]} 7... Nb6 {[%clk 0:02:12]} 8. b3 {[%clk 0:02:47.9]} 8...
O-O {[%clk 0:02:11.9]} 9. Bb2 {[%clk 0:02:48.5]} 9... Re8 {[%clk 0:02:10.3]} 10.
d4 {[%clk 0:02:27.7]} 10... exd4 {[%clk 0:02:07.4]} 11. Nb5 {[%clk 0:02:28.1]}
11... d3 {[%clk 0:02:05]} 12. exd3 {[%clk 0:02:24.3]} 12... a6 {[%clk
0:01:51.7]} 13. Nbd4 {[%clk 0:02:18.5]} 13... Nxd4 {[%clk 0:01:49.7]} 14. Nxd4
{[%clk 0:02:19.1]} 14... Bf6 {[%clk 0:01:49.7]} 15. Nc6 {[%clk 0:02:02.4]} 15...
bxc6 {[%clk 0:01:39.8]} 16. Bxf6 {[%clk 0:02:01.2]} 16... Qxf6 {[%clk 0:01:39]}
17. Rc1 {[%clk 0:01:46]} 17... Bd7 {[%clk 0:01:35.2]} 18. Qf3 {[%clk 0:01:39.1]}
18... Qxf3 {[%clk 0:01:34.5]} 19. Bxf3 {[%clk 0:01:39.6]} 19... Re7 {[%clk
0:01:25.4]} 20. Bxc6 {[%clk 0:01:27.8]} 20... Bxc6 {[%clk 0:01:26.3]} 21. Rxc6
{[%clk 0:01:28.6]} 21... Rd8 {[%clk 0:01:26.4]} 22. Rd1 {[%clk 0:01:25.7]} 22...
Red7 {[%clk 0:01:19]} 23. Kg2 {[%clk 0:01:21.9]} 23... a5 {[%clk 0:01:19]} 24.
Re1 {[%clk 0:01:13.6]} 24... g6 {[%clk 0:01:14.2]} 25. a4 {[%clk 0:01:04.8]}
25... Rb8 {[%clk 0:01:12.5]} 26. Rec1 {[%clk 0:01:00.1]} 26... Rxd3 {[%clk
0:01:10.2]} 27. Rxc7 {[%clk 0:00:57.7]} 27... Rxb3 {[%clk 0:01:10.4]} 28. Re1
{[%clk 0:00:56.1]} 28... Rd8 {[%clk 0:01:02.8]} 29. Ree7 {[%clk 0:00:56.1]}
29... Nd5 {[%clk 0:01:01.3]} 30. Rb7 {[%clk 0:00:53.5]} 30... Rxb7 {[%clk
0:00:59.7]} 31. Rxb7 {[%clk 0:00:54.4]} 31... Nc3 {[%clk 0:00:52.9]} 32. Ra7
{[%clk 0:00:52.2]} 32... Rd5 {[%clk 0:00:52.6]} 33. h4 {[%clk 0:00:50.2]} 33...
Nxa4 {[%clk 0:00:52]} 34. g4 {[%clk 0:00:46.9]} 34... Nc3 {[%clk 0:00:50.2]} 35.
Rc7 {[%clk 0:00:44.8]} 35... Nb5 {[%clk 0:00:43]} 36. Rc8+ {[%clk 0:00:42.4]}
36... Kg7 {[%clk 0:00:43.2]} 37. Ra8 {[%clk 0:00:43.3]} 37... Nc7 {[%clk
0:00:42.2]} 38. Ra7 {[%clk 0:00:41.6]} 38... Ne6 {[%clk 0:00:42.5]} 39. Kg3
{[%clk 0:00:40.2]} 39... h6 {[%clk 0:00:39.9]} 40. f3 {[%clk 0:00:39.5]} 40...
Nd4 {[%clk 0:00:37.5]} 41. Ra6 {[%clk 0:00:33.8]} 41... Nb3 {[%clk 0:00:36.5]}
42. Ra7 {[%clk 0:00:32.7]} 42... Rd4 {[%clk 0:00:36.5]} 43. Rb7 {[%clk
0:00:30.8]} 43... a4 {[%clk 0:00:36.3]} 44. g5 {[%clk 0:00:28.4]} 44... hxg5
{[%clk 0:00:36]} 45. hxg5 {[%clk 0:00:29.3]} 45... Nc5 {[%clk 0:00:36.1]} 46.
Rc7 {[%clk 0:00:27.1]} 46... Ne6 {[%clk 0:00:36]} 47. Ra7 {[%clk 0:00:25.7]}
47... Nxg5 {[%clk 0:00:35.6]} 48. f4 {[%clk 0:00:26.1]} 48... Ne6 {[%clk
0:00:35.5]} 49. Ra5 {[%clk 0:00:23.1]} 49... Rxf4 {[%clk 0:00:33.9]} 50. Ra6
{[%clk 0:00:16.7]} 50... Rb4 {[%clk 0:00:33.8]} 51. Ra5 {[%clk 0:00:16.8]} 51...
Rb3+ {[%clk 0:00:34.1]} 52. Kg4 {[%clk 0:00:16.4]} 52... f5+ {[%clk 0:00:30.5]}
53. Kh4 {[%clk 0:00:14.7]} 53... g5+ {[%clk 0:00:28.8]} 54. Kh5 {[%clk
0:00:06.7]} 54... Rh3# {[%clk 0:00:29.7]} 0-1

[Event "*** Titled Tuesday Blitz"]
[Site "Chess.com"]
[Date "2021.02.16"]
[Round "1"]
[White "DamianoLew95"]
[Black "Sjakkerntobi"]
[Result "0-1"]
[WhiteElo "2586"]
[BlackElo "2317"]
[TimeControl "180+1"]
[EndTime "10:07:59 PST"]
[Termination "Sjakkerntobi won by resignation"]

1. e4 {[%clk 0:03:00.9]} 1... e6 {[%clk 0:02:58.7]} 2. d3 {[%clk 0:02:55.1]}
2... d5 {[%clk 0:02:59.2]} 3. Nd2 {[%clk 0:02:54.5]} 3... Nf6 {[%clk 0:02:59.3]}
4. Ngf3 {[%clk 0:02:54.3]} 4... c5 {[%clk 0:02:59.7]} 5. g3 {[%clk 0:02:53.4]}
5... Nc6 {[%clk 0:02:59.7]} 6. Bg2 {[%clk 0:02:52.9]} 6... Be7 {[%clk
0:02:59.9]} 7. O-O {[%clk 0:02:52.4]} 7... O-O {[%clk 0:03:00.1]} 8. Re1 {[%clk
0:02:51.3]} 8... b5 {[%clk 0:02:58.9]} 9. Qe2 {[%clk 0:02:37.1]} 9... Qc7 {[%clk
0:02:49.3]} 10. e5 {[%clk 0:02:19.3]} 10... Nd7 {[%clk 0:02:48.3]} 11. h4 {[%clk
0:02:14.1]} 11... Bb7 {[%clk 0:02:46.9]} 12. Nf1 {[%clk 0:02:13.1]} 12... Rfc8
{[%clk 0:02:46.1]} 13. Bf4 {[%clk 0:02:08.3]} 13... Qd8 {[%clk 0:02:36.4]} 14.
N1h2 {[%clk 0:02:06.8]} 14... a5 {[%clk 0:02:34.9]} 15. h5 {[%clk 0:02:05.3]}
15... h6 {[%clk 0:02:33.8]} 16. Ng4 {[%clk 0:02:02.7]} 16... Bf8 {[%clk
0:02:33.4]} 17. a4 {[%clk 0:01:58.3]} 17... b4 {[%clk 0:02:32.7]} 18. c4 {[%clk
0:01:52.6]} 18... bxc3 {[%clk 0:01:53.6]} 19. bxc3 {[%clk 0:01:52.5]} 19... Nb6
{[%clk 0:01:48.8]} 20. Qd2 {[%clk 0:01:50.4]} 20... Ba6 {[%clk 0:01:46]} 21. Bf1
{[%clk 0:01:33]} 21... d4 {[%clk 0:01:13.6]} 22. c4 {[%clk 0:01:31.9]} 22... Nb4
{[%clk 0:01:13.4]} 23. Bg2 {[%clk 0:01:11.5]} 23... Bb7 {[%clk 0:01:10.8]} 24.
Nfh2 {[%clk 0:00:52.3]} 24... Bxg2 {[%clk 0:01:07.5]} 25. Kxg2 {[%clk
0:00:53.2]} 25... Rab8 {[%clk 0:00:32.4]} 26. Red1 {[%clk 0:00:52.9]} 26... Kh7
{[%clk 0:00:24.6]} 27. Bxh6 {[%clk 0:00:44.9]} 27... gxh6 {[%clk 0:00:24.5]} 28.
Nf6+ {[%clk 0:00:45.5]} 28... Kh8 {[%clk 0:00:24]} 29. Nhg4 {[%clk 0:00:45.6]}
29... Nd7 {[%clk 0:00:22.3]} 30. Qf4 {[%clk 0:00:40.8]} 30... Nxf6 {[%clk
0:00:18.1]} 31. exf6 {[%clk 0:00:40.3]} 31... e5 {[%clk 0:00:15.6]} 32. Nxe5
{[%clk 0:00:36.5]} 32... Qc7 {[%clk 0:00:15.7]} 33. Qf5 {[%clk 0:00:23]} 33...
Nc6 {[%clk 0:00:13.9]} 34. Ng6+ {[%clk 0:00:20.7]} 34... fxg6 {[%clk 0:00:14.2]}
35. hxg6 {[%clk 0:00:21.6]} 35... Qe5 {[%clk 0:00:13]} 36. Qd7 {[%clk
0:00:19.6]} 36... Rc7 {[%clk 0:00:13]} 37. g7+ {[%clk 0:00:18.2]} 37... Bxg7
{[%clk 0:00:13.2]} 38. fxg7+ {[%clk 0:00:18.4]} 38... Qxg7 {[%clk 0:00:11.7]}
39. Qd6 {[%clk 0:00:18.8]} 39... Rd8 {[%clk 0:00:10.6]} 40. Qe6 {[%clk
0:00:17.8]} 40... Ne5 {[%clk 0:00:05.7]} 41. Rh1 {[%clk 0:00:17.2]} 41... Ng4
{[%clk 0:00:04.7]} 42. f3 {[%clk 0:00:15.1]} 42... Ne3+ {[%clk 0:00:04.7]} 43.
Kf2 {[%clk 0:00:15.4]} 43... Kh7 {[%clk 0:00:04.4]} 44. Qe4+ {[%clk 0:00:15.3]}
44... Qg6 {[%clk 0:00:04.9]} 45. Qe5 {[%clk 0:00:13.7]} 45... Rf7 {[%clk
0:00:03.9]} 46. Rh4 {[%clk 0:00:10.3]} 46... Rdf8 {[%clk 0:00:03.6]} 47. Rah1
{[%clk 0:00:09.6]} 47... Ng4+ {[%clk 0:00:03.8]} 48. Rxg4 {[%clk 0:00:08.5]}
48... Qxg4 {[%clk 0:00:04.2]} 49. Qd6 {[%clk 0:00:06.7]} 49... Qg6 {[%clk
0:00:04.1]} 50. Ke1 {[%clk 0:00:07.6]} 50... Qxd6 {[%clk 0:00:03.5]} 0-1